Workbook

Sheet Spreadsheet Info
A1: Year | B1: 2010 | E1: Spreadsheet Data Location Section
E3: Data Type | F3: Value | G3: Description
D4: "Spreadsheet Info" | E4: "Carrier List" Column | F4: 1 | G4: column number containing the carrier list in "Basic Info"
E5: "Required Allocation" Column | F5: 2 | G5: column number containing the carrier allocation in "Basic Info"
A6: Total Carrier Number | B6: =COUNTA(A11:A31) -> 3
D7: "Data Collection" | E7: First Row of Data Entry | F7: 3 | G7: Row value containing the first set of data
A8: Carrier Information | E8: "Carrier Name" Column | F8: 2 | G8: Column in data entries containing the name of the carrier involved
E9: "Actual Booked Volume" Column | F9: 5 | G9: Column containing forecast volume information per PO
A10: Carrier List | B10: MQC | E10: "Booking Submission Date" Column | F10: 6 | G10: Column containing booking submission date per PO
A11: MAEU | B11: 5000 | E11: "Actual Shipped Volume" Column | F11: 7 | G11: Column containing booked volume data per PO
A12: APL | B12: 3000 | E12: "ETD" Column | F12: 4 | G12: Column containing the estimated time of departure per vessel
A13: CSC | B13: 2000 | E13: "LSD" Column | F13: 8 | G13: Column containing the lastest ship date per PO
E14: "Booking Delay" Column | F14: 9 | G14: Column containing whether booking form was submitted late per PO
E15: "Cargo Delay" Column | F15: 10 | G15: Column containing whether cargo was shipped late
E21: Note: The data inputs is solely for demonstration purposes

Sheet Data Collection
A1: Purchase Order | B1: Vessel Information | E1: Booking Information | G1: Delivery Information | I1: Booking Delay | J1: Cargo Delayed
A2: PO Number | B2: Carrier Name | C2: Vessel Voyage | D2: ETD | E2: Actual Booked Volume | F2: Booking Submission Date | G2: Actual Shipped Volume | H2: LSD
B3: MAEU | D3: =DATE(2010,1,7) -> 2010-01-07 | E3: 300 | F3: =DATE(2010,1,5) -> 2010-01-05 | G3: 300 | H3: =F3+7 -> 2010-01-12 | I3: =IF(OR(F3="",D3=""),"",IF(F3-D3+7<=0,"NO","YES")) -> YES | J3: =IF(OR(D3="",H3=""),"",IF(D3<=H3,"NO","YES")) -> NO
B4: APL | D4: 2010-01-18 | E4: 100 | F4: 2010-01-03 | G4: 100 | H4: 2010-01-14 | I4: NO | J4: YES
B5: MAEU | D5: 2010-01-18 | E5: 400 | F5: =DATE(2010,1,20) -> 2010-01-20 | G5: 400 | H5: =F5+7 -> 2010-01-27 | I5: YES | J5: NO
B6: APL | E6: 200 | F6: 2010-02-11 | G6: 100 | H6: 2010-02-18
B7: MAEU | E7: 200 | F7: =DATE(2010,2,20) -> 2010-02-20 | G7: 200 | H7: 2010-02-27
B8: APL | E8: 100 | F8: =DATE(2010,3,10) -> 2010-03-10 | G8: 100 | H8: 2010-03-17
B9: APL | E9: 500 | F9: =DATE(2010,4,18) -> 2010-04-18 | G9: 500 | H9: 2010-04-25
B10: APL | E10: 600 | F10: =DATE(2010,5,30) -> 2010-05-30 | G10: 600 | H10: 2010-06-06
B11: MAEU | E11: 800 | F11: =DATE(2010,6,20) -> 2010-06-20 | G11: 800 | H11: 2010-06-27
B12: APL | E12: 700 | F12: =DATE(2010,7,10) -> 2010-07-10 | G12: 700 | H12: 2010-07-17
B13: MAEU | E13: 900 | F13: =DATE(2010,7,10) -> 2010-07-10 | G13: 900 | H13: 2010-07-17
B14: APL | E14: 900 | F14: =DATE(2010,7,10) -> 2010-07-10 | G14: 900 | H14: 2010-07-17
B15: MAEU | E15: 500 | F15: =DATE(2010,7,10) -> 2010-07-10 | G15: 500 | H15: 2010-07-17
B16: MAEU | E16: 350 | F16: =DATE(2010,7,12)-7 -> 2010-07-05 | G16: 350 | H16: 2010-07-12
B17: APL | E17: 200 | F17: =DATE(2010,7,21) -> 2010-07-21 | G17: 200 | H17: 2010-07-28
B18: MAEU | E18: 700 | F18: =DATE(2010,7,18) -> 2010-07-18 | G18: 700 | H18: 2010-07-25
B19: MAEU | E19: 560 | F19: =DATE(2010,7,17) -> 2010-07-17 | G19: 560 | H19: 2010-07-24
B20: APL | E20: 230 | F20: =DATE(2010,7,8) -> 2010-07-08 | G20: 230 | H20: 2010-07-15
B21: APL | E21: 120 | F21: =DATE(2010,7,11) -> 2010-07-11 | G21: 120 | H21: 2010-07-18
B22: APL | E22: 50 | F22: =DATE(2010,8,2) -> 2010-08-02 | G22: 50 | H22: 2010-08-09
B23: MAEU | E23: 100 | F23: 2010-08-05 | G23: 100 | H23: 2010-08-12
F24: 2010-08-07 | H24: 2010-08-14

Sheet Monthly Info
A1: Total Booked
A2: Month | B2: =IF('Spreadsheet Info'!A11="","",'Spreadsheet Info'!A11) -> MAEU | C2: =IF('Spreadsheet Info'!A12="","",'Spreadsheet Info'!A12) -> APL | D2: =IF('Spreadsheet Info'!A13="","",'Spreadsheet Info'!A13) -> CSC | E2: =IF('Spreadsheet Info'!A14="","",'Spreadsheet Info'!A14) ->  | F2: =IF('Spreadsheet Info'!A15="","",'Spreadsheet Info'!A15) ->  | G2: =IF('Spreadsheet Info'!A16="","",'Spreadsheet Info'!A16) -> 
A3: January | B3: 700 | C3: 100 | D3: 0
A4: February | B4: 200 | C4: 800 | D4: 0
A5: March | B5: 0 | C5: 100 | D5: 0
A6: April | B6: 0 | C6: 500 | D6: 0
A7: May | B7: 0 | C7: 600 | D7: 0
A8: June | B8: 800 | C8: 0 | D8: 0
A9: July | B9: 3010 | C9: 2150 | D9: 0
A10: August | B10: 100 | C10: 50 | D10: 0
A11: September | B11: 0 | C11: 0 | D11: 0
A12: October | B12: 0 | C12: 0 | D12: 0
A13: November | B13: 0 | C13: 0 | D13: 0
A14: December | B14: 0 | C14: 0 | D14: 0
A16: Total Shipped
A17: Month | B17: =B2 -> MAEU | C17: =C2 -> APL | D17: CSC
A18: January | B18: 700 | C18: 100 | D18: 0
A19: February | B19: 200 | C19: 800 | D19: 0
A20: March | B20: 0 | C20: 100 | D20: 0
A21: April | B21: 0 | C21: 500 | D21: 0
A22: May | B22: 0 | C22: 600 | D22: 0
A23: June | B23: 800 | C23: 0 | D23: 0
A24: July | B24: 3010 | C24: 2150 | D24: 0
A25: August | B25: 100 | C25: 50 | D25: 0
A26: September | B26: 0 | C26: 0 | D26: 0
A27: October | B27: 0 | C27: 0 | D27: 0
A28: November | B28: 0 | C28: 0 | D28: 0
A29: December | B29: 0 | C29: 0 | D29: 0
A31: Total Bookings Delayed
A32: Monthly for All Carriers | B32: Delayed # | C32: Total #
A33: January | B33: 2 | C33: 3
A34: February | B34: 0 | C34: 2
A35: March | B35: 0 | C35: 1
A36: April | B36: 0 | C36: 1
A37: May | B37: 0 | C37: 1
A38: June | B38: 0 | C38: 1
A39: July | B39: 0 | C39: 10
A40: August | B40: 0 | C40: 3
A41: September | B41: 0 | C41: 0
A42: October | B42: 0 | C42: 0
A43: November | B43: 0 | C43: 0
A44: December | B44: 0 | C44: 0
A47: Total Cargo Delivery Delays
A48: Monthly for All Carriers | B48: Delayed # | C48: Total #
A49: January | B49: 1 | C49: 3
A50: February | B50: 0 | C50: 2
A51: March | B51: 0 | C51: 1
A52: April | B52: 0 | C52: 1
A53: May | B53: 0 | C53: 1
A54: June | B54: 0 | C54: 1
A55: July | B55: 0 | C55: 10
A56: August | B56: 0 | C56: 3
A57: September | B57: 0 | C57: 0
A58: October | B58: 0 | C58: 0
A59: November | B59: 0 | C59: 0
A60: December | B60: 0 | C60: 0

Sheet Booked Volume Accuracy
B1: Booked Volume V.S. Shipped Volume
B17: Year | C17: Monthly Data
C18: Monthly Data | D18: Booked Volume | E18: Shipped Volume | F18: KPI (%)
B19: 2010 | C19: January | D19: =SUM('Monthly Info'!B3:M3) -> 800 | E19: =SUM('Monthly Info'!B18:M18) -> 800 | F19: =IF(E19=0, "N/A",1-((D19-E19)/D19)) -> 1
C20: February | D20: =SUM('Monthly Info'!B4:M4) -> 1000 | E20: =SUM('Monthly Info'!B19:M19) -> 1000 | F20: =IF(E20=0, "N/A",1-((D20-E20)/D20)) -> 1
C21: March | D21: =SUM('Monthly Info'!B5:M5) -> 100 | E21: =SUM('Monthly Info'!B20:M20) -> 100 | F21: 1
C22: April | D22: =SUM('Monthly Info'!B6:M6) -> 500 | E22: =SUM('Monthly Info'!B21:M21) -> 500 | F22: 1
C23: May | D23: =SUM('Monthly Info'!B7:M7) -> 600 | E23: =SUM('Monthly Info'!B22:M22) -> 600 | F23: 1
C24: June | D24: =SUM('Monthly Info'!B8:M8) -> 800 | E24: =SUM('Monthly Info'!B23:M23) -> 800 | F24: 1
C25: July | D25: =SUM('Monthly Info'!B9:M9) -> 5160 | E25: =SUM('Monthly Info'!B24:M24) -> 5160 | F25: 1
C26: August | D26: =SUM('Monthly Info'!B10:M10) -> 150 | E26: =SUM('Monthly Info'!B25:M25) -> 150 | F26: 1
C27: September | D27: =SUM('Monthly Info'!B11:M11) -> 0 | E27: =SUM('Monthly Info'!B26:M26) -> 0 | F27: N/A
C28: October | D28: =SUM('Monthly Info'!B12:M12) -> 0 | E28: =SUM('Monthly Info'!B27:M27) -> 0 | F28: N/A
C29: November | D29: =SUM('Monthly Info'!B13:M13) -> 0 | E29: =SUM('Monthly Info'!B28:M28) -> 0 | F29: N/A
C30: December | D30: =SUM('Monthly Info'!B14:M14) -> 0 | E30: =SUM('Monthly Info'!B29:M29) -> 0 | F30: N/A

Sheet Booking Submission Delay
B1: Monthly Booking Delay Ratio
B20: Year | C20: Monthly Data
D21: Delayed Times | E21: Total Times | F21: KPI
B22: 2010 | C22: January | D22: ='Monthly Info'!B33 -> 2 | E22: ='Monthly Info'!C33 -> 3 | F22: =IF(E22=0, "N/A",1-(D22/E22)) -> 0.3333333333
C23: February | D23: ='Monthly Info'!B34 -> 0 | E23: ='Monthly Info'!C34 -> 2 | F23: =IF(E23=0, "N/A",1-(D23/E23)) -> 1
C24: March | D24: ='Monthly Info'!B35 -> 0 | E24: ='Monthly Info'!C35 -> 1 | F24: 1
C25: April | D25: ='Monthly Info'!B36 -> 0 | E25: ='Monthly Info'!C36 -> 1 | F25: 1
C26: May | D26: ='Monthly Info'!B37 -> 0 | E26: ='Monthly Info'!C37 -> 1 | F26: 1
C27: June | D27: ='Monthly Info'!B38 -> 0 | E27: ='Monthly Info'!C38 -> 1 | F27: 1
C28: July | D28: ='Monthly Info'!B39 -> 0 | E28: ='Monthly Info'!C39 -> 10 | F28: 1
C29: August | D29: ='Monthly Info'!B40 -> 0 | E29: ='Monthly Info'!C40 -> 3 | F29: 1
C30: September | D30: ='Monthly Info'!B41 -> 0 | E30: ='Monthly Info'!C41 -> 0 | F30: N/A
C31: October | D31: ='Monthly Info'!B42 -> 0 | E31: ='Monthly Info'!C42 -> 0 | F31: N/A
C32: November | D32: ='Monthly Info'!B43 -> 0 | E32: ='Monthly Info'!C43 -> 0 | F32: N/A
C33: December | D33: ='Monthly Info'!B44 -> 0 | E33: ='Monthly Info'!C44 -> 0 | F33: N/A

Sheet Carrier Booking Allocation
A1: Volume Allocation
A2: Year | B2: ='Spreadsheet Info'!B1 -> 2010
B3: ='Monthly Info'!B2 -> MAEU | C3: ='Monthly Info'!C2 -> APL | D3: ='Monthly Info'!D2 -> CSC | E3: ='Monthly Info'!E2 ->  | F3: ='Monthly Info'!F2 ->  | G3: ='Monthly Info'!G2 -> 
A4: Actual Allocation | B4: =IF(B3="","",SUM('Monthly Info'!B18:B29)) -> 4810 | C4: =IF(C3="","",SUM('Monthly Info'!C18:C29)) -> 4300 | D4: =IF(D3="","",SUM('Monthly Info'!D18:D29)) -> 0 | E4: =IF(E3="","",SUM('Monthly Info'!E18:E29)) ->  | F4: =IF(F3="","",SUM('Monthly Info'!F18:F29)) ->  | G4: =IF(G3="","",SUM('Monthly Info'!G18:G29)) -> 
A5: MQC | B5: =IF('Spreadsheet Info'!B11="","",'Spreadsheet Info'!B11) -> 5000 | C5: =IF('Spreadsheet Info'!B12="","",'Spreadsheet Info'!B12) -> 3000 | D5: =IF('Spreadsheet Info'!B13="","",'Spreadsheet Info'!B13) -> 2000 | E5: =IF('Spreadsheet Info'!B14="","",'Spreadsheet Info'!B14) ->  | F5: =IF('Spreadsheet Info'!B15="","",'Spreadsheet Info'!B15) ->  | G5: =IF('Spreadsheet Info'!B16="","",'Spreadsheet Info'!B16) -> 
A6: KPI | B6: =IF(OR(B4="",B5=""), "",B4-B5) -> -190 | C6: =IF(OR(C4="",C5=""), "",C4-C5) -> 1300 | D6: -2000
A8: Yearly KPI | C8: =SUM(B6:G6) -> -890
A10: Deviation from MQC | C10: =(SUM(B4:G4)-SUM(B5:G5))/SUM(B5:G5) -> -0.089

Sheet Cargo On-Time Delivery
B1: Monthly Cargo Delivery Delay Ratio
B4: Year | C4: Monthly Data
D5: Total delayed # | E5: Total PO # | F5: KPI
B6: 2010 | C6: January | D6: ='Monthly Info'!B49 -> 1 | E6: ='Monthly Info'!C49 -> 3 | F6: =IF(E6=0,"N/A",(1-D6/E6)) -> 0.6666666667
C7: February | D7: ='Monthly Info'!B50 -> 0 | E7: ='Monthly Info'!C50 -> 2 | F7: =IF(E7=0,"N/A",(1-D7/E7)) -> 1
C8: March | D8: ='Monthly Info'!B51 -> 0 | E8: ='Monthly Info'!C51 -> 1 | F8: 1
C9: April | D9: ='Monthly Info'!B52 -> 0 | E9: ='Monthly Info'!C52 -> 1 | F9: 1
C10: May | D10: ='Monthly Info'!B53 -> 0 | E10: ='Monthly Info'!C53 -> 1 | F10: 1
C11: June | D11: ='Monthly Info'!B54 -> 0 | E11: ='Monthly Info'!C54 -> 1 | F11: 1
C12: July | D12: ='Monthly Info'!B55 -> 0 | E12: ='Monthly Info'!C55 -> 10 | F12: 1
C13: August | D13: ='Monthly Info'!B56 -> 0 | E13: ='Monthly Info'!C56 -> 3 | F13: 1
C14: September | D14: ='Monthly Info'!B57 -> 0 | E14: ='Monthly Info'!C57 -> 0 | F14: N/A
C15: October | D15: ='Monthly Info'!B58 -> 0 | E15: ='Monthly Info'!C58 -> 0 | F15: N/A
C16: November | D16: ='Monthly Info'!B59 -> 0 | E16: ='Monthly Info'!C59 -> 0 | F16: N/A
C17: December | D17: ='Monthly Info'!B60 -> 0 | E17: ='Monthly Info'!C60 -> 0 | F17: N/A
